lending/lending_fUSD_20250409
["ID","MTS","AMOUNT","RATE_DAILY","PERIOD"]
[357588887,1744201849685,-1746.74089662,0.00033508,120]
[357588888,1744201849695,-3600.0,0.00034,35]
[357588889,1744201849705,-2758.22551783,0.00034,120]
[357588890,1744201849715,-263.77,0.00034246,2]
[357588891,1744201849724,-791.0,0.00034278,2]
[357588892,1744201849734,-907.0,0.00034278,2]
[357588893,1744201849743,-1278.0,0.00034278,2]
[357588894,1744201849754,-1436.0,0.00034278,2]
[357588895,1744201849764,-4143.0,0.00034278,2]
[357588896,1744201849774,-544.0,0.00034278,2]
[357588897,1744201849783,-2044.0,0.00034278,2]
[357588898,1744201849792,-574.0,0.00034278,2]
[357588899,1744201849802,-1286.0,0.00034278,2]
[357588900,1744201849811,-852.0,0.00034278,2]
[357588901,1744201849820,-3958.0,0.00034278,2]
[357588902,1744201849830,-151.0,0.00034278,2]
[357588903,1744201849840,-150.0,0.00034548,10]
[357588904,1744201849850,-11176.78344984,0.0003489,14]
[357588908,1744202180505,348.81,0.00026606,120]
[357588909,1744202180774,348.81,0.00029931,120]
[357588914,1744202705652,163.0,0.00032,120]
[357588915,1744202827145,-339.0004,0.00019886,2]
[357588916,1744202827167,-84.65240249,0.00021451,2]
[357588919,1744202945986,-551.47759751,0.00021451,2]
[357588920,1744202946008,-150.0,0.00021452,2]
[357588921,1744202946030,-636.13,0.00021457,2]
[357588922,1744202946052,-636.13,0.00021462,2]
[357588923,1744202946073,-636.13,0.00021468,2]
[357588924,1744202946095,-636.13,0.00021474,2]
[357588925,1744202946117,-636.13,0.00021479,2]
[357588926,1744202946138,-636.13,0.00021485,2]
[357588927,1744202946160,-636.13,0.00021491,2]
[357588928,1744202946180,-636.13,0.00021496,2]
[357588929,1744202946201,-636.13,0.00021502,2]
[357588930,1744202946222,-636.13,0.00021507,2]
[357588931,1744202946243,-636.13,0.00021513,2]
[357588932,1744202946264,-636.13,0.00021519,2]
[357588933,1744202946290,-636.13,0.00021524,2]
[357588934,1744202946312,-636.13,0.0002153,2]
[357588935,1744202946332,-636.13,0.00021536,2]
[357588936,1744202946353,-636.13,0.00021541,2]
[357588937,1744202946374,-636.13,0.00021547,2]
[357588938,1744202946395,-636.13,0.00021553,2]
[357588939,1744202946416,-636.13,0.00021558,2]
[357588940,1744202946437,-250.0,0.0002189,2]
[357588941,1744202946459,-153.86,0.00021917,2]
[357588942,1744202946482,-300.0,0.00022821,2]
[357588943,1744202946504,-175.08,0.00022821,2]
[357588944,1744202946526,-868.0,0.00022821,2]
[357588945,1744202946549,-153.86,0.00023287,2]
[357588946,1744202946570,-9999.99,0.00024174,2]
[357588947,1744202946592,-150.99,0.00024174,2]
[357588948,1744202946612,-300.0,0.00024191,2]
[357588949,1744202946635,-153.86,0.00024657,2]
[357588950,1744202946657,-12209.34820196,0.00024676,2]
[357588951,1744202946678,-152.63,0.00025125,2]
[357588952,1744202946700,-1923.54,0.00025151,2]
[357588953,1744202946723,-554.11,0.00025934,2]
[357588954,1744202946746,-300.0,0.00026006,2]
[357588955,1744202946770,-153.86,0.00026027,2]
[357588956,1744202946791,-262.67,0.00026062,2]
[357588957,1744202946814,-200.0,0.00026072,7]
[357588958,1744202946837,-1000.0,0.00026203,2]
[357588959,1744202946860,-200.0,0.00026217,2]
[357588960,1744202946881,-500.0,0.00026338,2]
[357588961,1744202946903,-23900.0,0.00026504,2]
[357588962,1744202946923,-152.63,0.0002652,2]
[357588963,1744202946945,-250.0,0.00026582,2]
[357588964,1744202946965,-4650.85,0.00026591,2]
[357588965,1744202946987,-150.0,0.00026604,2]
[357588966,1744202947007,-1852.42,0.00026804,2]
[357588967,1744202947031,-235.07,0.00026819,2]
[357588968,1744202947053,-344.56,0.00026833,2]
[357588969,1744202947073,-288.43,0.00026849,2]
[357588970,1744202947096,-342.87,0.00026852,2]
[357588971,1744202947117,-250.0,0.00026881,2]
[357588972,1744202947138,-616.7359,0.00026885,2]
[357588973,1744202947159,-24567.82,0.00026985,2]
[357588974,1744202947179,-2000.0,0.00027005,2]
[357588975,1744202947200,-30734.08,0.00027359,2]
[357588976,1744202947222,-697.402792,0.00027397,7]
[357588977,1744202947244,-697.402792,0.00027397,7]
[357588978,1744202947265,-151.0,0.00027397,7]
[357588979,1744202947286,-151.0,0.00027397,7]
[357588980,1744202947306,-151.0,0.00027397,7]
[357588981,1744202947325,-151.0,0.00027397,7]
[357588982,1744202947346,-151.0,0.00027397,7]
[357588983,1744202947367,-151.0,0.00027397,7]
[357588984,1744202947387,-151.0,0.00027397,7]
[357588985,1744202947406,-176.055222,0.00027397,7]
[357588986,1744202947427,-500.0,0.00027397,2]
[357588987,1744202947449,-500.0,0.00027397,2]
[357588988,1744202947469,-500.0,0.00027397,2]
[357588989,1744202947490,-500.0,0.00027397,2]
[357588990,1744202947512,-500.0,0.00027397,2]
[357588991,1744202947534,-500.0,0.00027397,2]
[357588992,1744202947555,-500.0,0.00027397,2]
[357588993,1744202947577,-500.0,0.00027397,2]
[357588994,1744202947598,-500.0,0.00027397,2]
[357588995,1744202947619,-500.0,0.00027397,2]
[357588996,1744202947641,-500.0,0.00027397,2]
[357588997,1744202947662,-500.0,0.00027397,2]
[357588998,1744202947684,-482.1992028,0.00027397,2]
[357588999,1744202947704,-500.0,0.00027397,2]
[357589000,1744202947726,-153.86,0.00027397,2]
[357589001,1744202947748,-680.78,0.00027397,2]
[357589002,1744202947773,-1923.54,0.00027415,2]
[357589003,1744202947795,-184.85,0.00027836,2]
[357589004,1744202947817,-152.63,0.00027916,2]
[357589005,1744202947838,-162.5,0.00028,2]
[357589006,1744202947860,-181.41,0.00028376,2]
[357589007,1744202947881,-153.86,0.00028767,2]
[357589008,1744202947902,-680.78,0.00028767,2]
[357589009,1744202947923,-152.63,0.00029312,2]
[357589010,1744202947944,-1000.0,0.00029479,2]
[357589011,1744202947965,-1923.54,0.00029678,2]
[357589012,1744202947990,-153.86,0.00030136,2]
[357589013,1744202948010,-680.78,0.00030137,2]
[357589014,1744202948032,-1418.41784576,0.00030422,2]
[357589015,1744202948053,-152.63,0.00030708,2]
[357589016,1744202948074,-153.86,0.00031506,2]
[357589017,1744202948095,-680.78,0.00031507,2]
[357589018,1744202948121,-1923.54,0.00031942,2]
[357589019,1744202948143,-5702.584045,0.00032091,2]
[357589020,1744202948164,-152.63,0.00032104,2]
[357589021,1744202948185,-288.43,0.00032646,2]
[357589022,1744202948205,-495.24,0.0003268,7]
[357589023,1744202948226,-151.0,0.00032706,2]
[357589024,1744202948248,-3958.0,0.00032706,2]
[357589025,1744202948268,-852.0,0.00032706,2]
[357589026,1744202948292,-574.0,0.00032706,2]
[357589027,1744202948314,-1286.0,0.00032706,2]
[357589028,1744202948335,-2044.0,0.00032706,2]
[357589029,1744202948355,-1003.0,0.00032706,2]
[357589030,1744202948376,-1377.385,0.00032706,2]
[357589031,1744202948399,-791.0,0.00032706,2]
[357589032,1744202948419,-907.0,0.00032706,2]
[357589033,1744202948440,-1436.0,0.00032706,2]
[357589034,1744202948461,-1278.0,0.00032706,2]
[357589035,1744202948482,-4143.0,0.00032706,2]
[357589036,1744202948503,-544.0,0.00032706,2]
[357589037,1744202948525,-1000.0,0.00032754,2]
[357589038,1744202948546,-500.0,0.00032825,5]
[357589039,1744202948566,-500.0,0.00032825,5]
[357589040,1744202948587,-500.0,0.00032833,5]
[357589041,1744202948836,-500.0,0.0003285,5]
[357589042,1744202948870,-500.0,0.0003285,5]
[357589043,1744202948891,-1006.48127833,0.00032874,30]
[357589044,1744202948911,-1000.0,0.00032875,30]
[357589045,1744202948933,-153.86,0.00032876,2]
[357589046,1744202948954,-680.78,0.00032877,2]
[357589047,1744202948974,-1500.0,0.00032877,120]
[357589048,1744202948994,-330.61,0.00032877,2]
[357589049,1744202949014,-596.62942509,0.00033153,2]
[357589050,1744202949036,-348.81,0.00033257,120]
[357589051,1744202949057,-152.63,0.000335,2]
[357589052,1744202949079,-791.13061767,0.00033937,2]
[357589053,1744202949099,-2500.0,0.00033949,2]
[357589054,1744202949120,-250.0,0.00034,4]
[357589055,1744202949141,-150.0,0.00034,120]
[357589056,1744202949162,-1293.6604,0.00034178,2]
[357589057,1744202949183,-1538.1654,0.00034178,2]
[357589058,1744202949204,-1923.54,0.00034206,2]
[357589059,1744202949227,-153.86,0.00034246,2]
[357589060,1744202949248,-1000.0,0.00034278,2]
[357589061,1744202949268,-1000.0,0.00034278,2]
[357589062,1744202949292,-1000.0,0.00034278,2]
[357589063,1744202949312,-1000.0,0.00034278,2]
[357589064,1744202949332,-150.0,0.00034548,10]
[357589065,1744202949353,-17890.4878,0.00034776,2]
[357589066,1744202949373,-811.6298,0.00034776,2]
[357589067,1744202949394,-347.6,0.000348,2]
[357589068,1744202949414,-3196.7322314,0.00034864,3]
[357589069,1744202949436,-44808.9205424,0.00034866,3]
[357589070,1744202949456,-150.0,0.00034875,2]
[357589071,1744202949477,-150.0,0.00034875,2]
[357589072,1744202949498,-150.0,0.00034875,2]
[357589073,1744202949520,-150.0,0.00034875,2]
[357589074,1744202949543,-150.0,0.00034875,2]
[357589075,1744202949563,-150.0,0.00034875,2]
[357589076,1744202949586,-19591.2398735,0.00034876,2]
[357589077,1744202949606,-643.9381533,0.00034876,2]
[357589078,1744202949627,-7867.2883419,0.00034876,2]
[357589079,1744202949648,-120599.287114,0.00034876,2]
[357589080,1744202949668,-16541.350002,0.00034876,2]
[357589081,1744202949688,-2184.6940668,0.00034876,2]
[357589082,1744202949710,-427.17915458,0.0003488,3]
[357589083,1744202950262,-14509.12769292,0.0003488,3]
[357589084,1744202950291,-21489.66946832,0.0003489,14]
[357589085,1744202950313,-152.63,0.00034895,2]
[357589086,1744202950340,-14496.6616,0.000349,2]
[357589087,1744202950362,-151.42,0.0003498,2]
[357589088,1744202950385,-14936.3068475,0.0003498,3]
[357589089,1744202950407,-151.42,0.0003499,2]
[357589090,1744202950429,-11197.92936311,0.0003499,3]
[357589091,1744202950606,-47811.75784,0.0003499,3]
[357589092,1744202954460,-15010.5756482,0.00034876,2]
[357589093,1744202954483,-75417.07442389,0.0003499,3]
[357589094,1744202954505,-5787.15142354,0.0003499,3]
[357589095,1744202962298,-500.0,0.00032825,5]
[357589096,1744202962320,-58116.82036,0.0003499,3]
[357589097,1744202973132,-533.64552592,0.000349,2]
[357589098,1744202973155,-3930.96546408,0.0003499,3]
[357589108,1744203031700,-500.0,0.00025854,2]
[357589109,1744203031709,-434.62863859,0.00031333,2]
[357589110,1744203031718,-852.0,0.00032777,2]
[357589111,1744203031728,-1893.96745577,0.00032777,2]
[357589112,1744203031739,-2064.03254423,0.00032777,2]
[357589113,1744203031749,-151.0,0.00032777,2]
[357589114,1744203031759,-865.2806,0.00033949,2]
[357589115,1744203031769,-1871.14008759,0.000349,2]
[357589116,1744203031784,-2335.60487195,0.000349,2]
[357589117,1744203031793,-500.0,0.00034973,5]
[357589118,1744203031803,-494.802077,0.00034976,2]
[357589119,1744203031813,-3811.7029508,0.0003499,3]
[357589120,1744203031825,-1285.90345045,0.0003499,3]
[357589121,1744203031837,-562.76417773,0.0003499,3]
[357589122,1744203031847,-936.02531955,0.00034999,30]
[357589123,1744203031860,-63.97468045,0.00034999,30]
[357589124,1744203031870,-667.7390813,0.00035,5]
[357589125,1744203031893,-1495.2609187,0.00035,5]
[357589126,1744203031903,-3600.0,0.00035,36]
[357589127,1744203031912,-13180.8176265,0.00035,4]
[357589128,1744203031925,-957.68262744,0.00035,4]
[357589129,1744203031937,-2870.44053836,0.00035,4]
[357589130,1744203031948,-284.23252147,0.00035,4]
[357589131,1744203031960,-385.1781132,0.00035,4]
[357589132,1744203031990,-1410.54215506,0.00035,4]
[357589133,1744203032002,-6857.98028969,0.00035,4]
[357589168,1744203037650,-309.89195716,0.000285,2]
[357589169,1744203037662,-617.25748904,0.000285,2]
[357589170,1744203037672,-946.20849584,0.00034976,2]
[357589171,1744203037778,-324.24314892,0.00034976,2]
[357589172,1744203037904,-308.02088636,0.00034976,2]
[357589173,1744203037915,-1754.51764449,0.00034976,2]
[357589174,1744203037927,-1911.86871899,0.00034976,2]
[357589175,1744203037937,-500.0,0.00034999,7]
[357589176,1744203037946,-275.79991142,0.00034999,7]
[357589177,1744203037955,-1772.36977612,0.00035,4]
[357589178,1744203037966,-1897.746352,0.00035,4]
[357589179,1744203037977,-3801.78212858,0.00035,4]
[357589180,1744203037989,-386.22979453,0.00035,4]
[357589181,1744203038080,-127252.68252607,0.00035,4]
[357589182,1744203038090,-3900.0,0.00035,7]
[357589183,1744203038099,-48403.40703938,0.00035,40]
[357589184,1744203038155,-46.01187733,0.00035,40]
[357589227,1744203040248,-598.11251557,0.00035,40]
[357589249,1744203042697,-4800.39593542,0.00035,40]
[357589254,1744203042768,-52664.32310924,0.00035,40]
[357589255,1744203042780,-650.0,0.00035,2]
[357589256,1744203042791,-151.0,0.00035,7]
[357589257,1744203042800,-151.0,0.00035,7]
[357589258,1744203042810,-151.0,0.00035,7]
[357589259,1744203042819,-151.0,0.00035,7]
[357589260,1744203042828,-2232.393832,0.00035,7]
[357589261,1744203042838,-2232.393832,0.00035,7]
[357589262,1744203042847,-457.709188,0.00035,7]
[357589263,1744203042858,-457.709188,0.00035,7]
[357589264,1744203042869,-697.402792,0.00035,7]
[357589265,1744203042880,-697.402792,0.00035,7]
[357589266,1744203042889,-151.0,0.00035,7]
[357589267,1744203042899,-151.0,0.00035,7]
[357589268,1744203042908,-215.807431,0.00035,7]
[357589269,1744203042917,-151.0,0.00035,7]
[357589270,1744203042926,-151.0,0.00035,7]
[357589271,1744203042935,-151.0,0.00035,7]
[357589272,1744203042945,-151.0,0.00035,7]
[357589273,1744203042955,-153.089161,0.00035,7]
[357589274,1744203042964,-151.0,0.00035,7]
[357589275,1744203042973,-160.45,0.00035,2]
[357589276,1744203042983,-14936.3068475,0.0003509,3]
[357589277,1744203042992,-9186.91347833,0.0003509,3]
[357589278,1744203043001,-500.0,0.000351,120]
[357589279,1744203043011,-500.0,0.000351,120]
[357589280,1744203043020,-500.0,0.000351,120]
[357589281,1744203043029,-583.88596492,0.000351,120]
[357589282,1744203043037,-87532.85295976,0.000351,3]
[357589283,1744203043060,-354.7624995,0.000351,3]
[357589322,1744203452759,10000.0,0.00032,120]
[357589324,1744203755117,318.7,0.0003,30]
[357589325,1744203938166,-250.0,0.00019,2]
[357589326,1744203938190,-167.46700742,0.00021,2]
[357589327,1744203939104,-132.53299258,0.00021,2]
[357589328,1744203939127,-350.0,0.00023,2]
[357589329,1744203939150,-247.6250279,0.0002429,2]
[357589330,1744204019098,-167.76210286,0.0002429,2]
[357589332,1744204046323,-196.64880547,0.0002429,2]
[357589333,1744204046344,-400.0,0.00025,2]
[357589334,1744204046365,-157.86,0.00026849,2]
[357589335,1744204046387,-134.56519143,0.00027,2]
[357589336,1744204053147,-315.43480857,0.00027,2]
[357589337,1744204053170,-500.0,0.00029,2]
[357589338,1744204053193,-355.08155055,0.00030643,2]
[357589339,1744204053215,-846.95500164,0.00030792,30]
[357589340,1744204053237,-550.0,0.00031,2]
[357589341,1744204053261,-1442.65,0.00031546,2]
[357589342,1744204053282,-204.21486975,0.00031547,2]
[357589343,1744204053304,-423.68522695,0.00031547,2]
[357589344,1744204053327,-500.0,0.00031589,2]
[357589345,1744204053349,-400.0,0.00032484,2]
[357589346,1744204053372,-2796.88101138,0.00032485,2]
[357589350,1744204150123,-2398.6098131,0.00032485,2]
[357589351,1744204150150,-332.0,0.00032777,2]
[357589352,1744204150174,-150.0,0.00032778,2]
[357589353,1744204150195,-2044.0,0.00032778,2]
[357589354,1744204150219,-1286.0,0.00032778,2]
[357589355,1744204150241,-574.0,0.00032778,2]
[357589356,1744204150261,-2406.1661309,0.00032778,2]
[357589358,1744204162095,-1539.346956,0.00032778,2]
[357589359,1744204171130,-12.4869131,0.00032778,2]
[357589360,1744204171152,-151.0,0.00032778,2]
[357589361,1744204171174,-1326.0,0.00032778,2]
[357589362,1744204171195,-1436.0,0.00032778,2]
[357589363,1744204171219,-791.0,0.00032778,2]
[357589364,1744204171240,-1278.0,0.00032778,2]
[357589365,1744204171261,-907.0,0.00032778,2]
[357589366,1744204171281,-544.0,0.00032778,2]
[357589367,1744204171301,-4143.0,0.00032778,2]
[357589368,1744204171323,-852.0,0.00032778,2]
[357589369,1744204171344,-600.0,0.00033,2]
[357589370,1744204171366,-150.0,0.00033352,2]
[357589371,1744204171386,-1000.0,0.00033385,2]
[357589372,1744204171406,-461.75,0.00033408,2]
[357589373,1744204171426,-250.0,0.0003349,2]
[357589374,1744204171447,-200.0,0.00033551,7]
[357589375,1744204171467,-1442.65,0.0003381,2]
[357589376,1744204171488,-23900.0,0.00033908,2]
[357589377,1744204171509,-58.1310469,0.0003402,2]
[357589378,1744204174085,-113.2989531,0.0003402,2]
[357589379,1744204174108,-343.4822515,0.00034522,2]
[357589394,1744204232098,-343.33559968,0.000332,5]
[357589395,1744204232122,-156.66440032,0.000332,5]
[357589396,1744204232134,-151.0,0.0003423,2]
[357589397,1744204232146,-3412.53033183,0.0003423,2]
[357589398,1744204232175,-545.46966817,0.0003423,2]
[357589399,1744204232184,-852.0,0.0003423,2]
[357589400,1744204232195,-1006.60942743,0.00034522,2]
[357589401,1744204232269,-800.0,0.00034522,2]
[357589402,1744204232303,-5839.1125404,0.00034522,2]
[357589403,1744204232315,-415.11113006,0.00034522,2]
[357589407,1744204232352,-1148.01164515,0.00034522,2]
[357589409,1744204232362,-79.35235485,0.0003478,2]
[357589485,1744204237860,-1229.55764515,0.0003478,2]
[357589486,1744204237870,-654.67085484,0.00034789,2]
[357589487,1744204237882,-654.23914516,0.00034789,2]
[357589489,1744204237892,-801.14028039,0.00034798,2]
[357589491,1744204237904,-2713.3599994,0.00034798,2]
[357589499,1744204239692,-468.50662102,0.00034798,2]
[357589500,1744204239882,-11405.50010003,0.00034798,2]
[357589501,1744204239893,-1308.91,0.00034798,2]
[357589502,1744204239903,-1308.91,0.00034808,2]
[357589503,1744204239914,-1308.91,0.00034817,2]
[357589504,1744204239924,-1308.91,0.00034826,2]
[357589505,1744204239934,-474.47189998,0.00034835,2]
[357589506,1744204239974,-834.43810002,0.00034835,2]
[357589507,1744204239984,-522.928113,0.00034844,2]
[357589508,1744204240537,-785.981887,0.00034844,2]
[357589510,1744204240547,-1308.91,0.00034853,2]
[357589511,1744204240556,-940.24433576,0.00034863,2]
[357589512,1744204240607,-98.78599982,0.00034863,2]
[357589555,1744204244143,-18.64016442,0.00034863,2]
[357589564,1744204246811,-251.2395,0.00034863,2]
[357589565,1744204246821,-1308.91,0.00034872,2]
[357589566,1744204246831,-1308.91,0.00034881,2]
[357589567,1744204246841,-1308.91,0.0003489,2]
[357589568,1744204246851,-2724.784,0.0003489,40]
[357589569,1744204246863,-1308.91,0.00034899,2]
[357589570,1744204246873,-1308.91,0.00034908,2]
[357589571,1744204246883,-1308.91,0.00034917,2]
[357589572,1744204246893,-1308.91,0.00034927,2]
[357589573,1744204246902,-1308.91,0.00034936,2]
[357589574,1744204246912,-1308.91,0.00034945,2]
[357589575,1744204246923,-1308.91,0.00034954,2]
[357589576,1744204246938,-173.188,0.00034976,40]
[357589577,1744204246948,-159.88,0.00035,2]
[357589578,1744204246958,-650.0,0.00035,2]
[357589579,1744204246968,-3786.07046355,0.00035,2]
[357589580,1744204246977,-300.0,0.00035,5]
[357589581,1744204246987,-500.0,0.00035,2]
[357589582,1744204246996,-1435.58409625,0.0003501,2]
[357589585,1744205139174,-223.44960006,0.0002,2]
[357589586,1744205249105,-17828.76902895,0.0002,2]
[357589587,1744205284190,2000.0,0.00015,2]
[357589588,1744205284217,2000.0,0.00015,2]
[357589589,1744205284252,23115.48750758,0.00015,2]
[357589595,1744205352262,-94555.26668,0.0002,2]
[357589596,1744205353280,-275498.92658654,0.0002,2]
[357589597,1744205361261,-250.0,0.00019,2]
[357589598,1744205361286,-4214.615302,0.0002,2]
[357589602,1744205368202,-47810.94934,0.0002,2]
[357589603,1744205372286,-58705.3614,0.0002,2]
[357589614,1744205432020,-1043.81180349,0.0002,2]
[357589615,1744205432218,-302.0,0.0002,2]
[357589616,1744205432282,-461.12886944,0.0002,2]
[357589629,1744205438069,-817.66979604,0.0002,2]
[357589630,1744205438081,-574.9999999,0.0002,2]
[357589631,1744205438425,-3863.66994555,0.0002,2]
[357589661,1744205440227,-397.86426325,0.0002,2]
[357589672,1744205443288,-41927.81879666,0.0002,2]
[357589679,1744205443887,-11586.04201074,0.0002,2]
[357589700,1744205446048,-833.8,0.0002,2]
[357589714,1744205446168,-1980.97433704,0.0002,2]
[357589720,1744205446216,-2358.20940987,0.0002,2]
[357589722,1744205446228,-95832.75086802,0.0002,2]
[357589723,1744205446239,-122653.98298095,0.0002,2]
[357589724,1744205446354,-481.71831524,0.0002,2]
[357589732,1744205519745,7682.64,0.00032,120]
[357589733,1744205655655,835.72419639,0.00032,120]
[357589734,1744205690458,1000.0,0.00032,120]
[357589735,1744205717380,799.2840303,0.00032,120]
[357589736,1744205815089,500.0,0.000305,60]
[357589738,1744206348157,-173.189924,0.000196,2]
[357589739,1744206348182,-645.04286573,0.000196,2]
[357589740,1744206443155,-1534.78413427,0.000196,2]
[357589741,1744206443178,-3499.80953508,0.000199,2]
[357589742,1744206443202,-27.53582451,0.000199,2]
[357589743,1744206546285,-738.31890126,0.000199,2]
[357589744,1744206546307,-500.0,0.00019973,2]
[357589745,1744206546329,-172.0,0.00019999,2]
[357589746,1744206546352,-113634.17429874,0.0002,2]
[357589747,1744206555096,-740.3783086,0.0002,2]
[357589748,1744206558317,-956.2185752,0.0002,2]
[357589749,1744206564116,-174040.16,0.0002,2]
[357589750,1744206574150,-3354.207584,0.0002,2]
[357589751,1744206602457,3219.8574894,0.00032,120]
[357589752,1744206622576,500.0,0.000305,60]
[357589768,1744206632353,-15416.79999999,0.0002,2]
[357589787,1744206638364,-48349.681022,0.0002,2]
[357589788,1744206638472,-56133.9762556,0.0002,2]
[357589789,1744206638500,-1143.373,0.0002,2]
[357589790,1744206638603,-5928.41795813,0.0002,2]
[357589791,1744206638615,-561.22653245,0.0002,2]
[357589837,1744206640650,-1868.89313645,0.0002,2]
[357589838,1744206640662,-1551.76545519,0.0002,2]
[357589839,1744206640674,-570.06746319,0.0002,2]
[357589840,1744206640716,-26206.50218026,0.0002,2]
[357589859,1744206644310,-152.57464665,0.0002,2]
[357589893,1744206646329,-4315.84303845,0.0002,2]
[357589897,1744206760231,999.54890001,0.00032,120]
[357589898,1744206804137,1000.0,0.000305,60]
[357589900,1744206885454,2000.0,0.000305,60]
[357589941,1744207120663,-17374.6234,0.000199,2]
[357589942,1744207120685,-12311.11337082,0.000199,2]
[357589943,1744207120708,-3149.82858159,0.000199,2]
[357589944,1744207120731,-689.26925322,0.000199,2]
[357589945,1744207120758,-2200.0198,0.000199,2]
[357589946,1744207120780,-17890.4878,0.000199,2]
[357589947,1744207120803,-61503.2958269,0.00019986,2]
[357589948,1744207120824,-1027.5446063,0.00019986,2]
[357589949,1744207120846,-6136.402463,0.00019986,2]
[357589950,1744207120868,-6695.0058906,0.00019986,2]
[357589951,1744207120889,-1478.5076243,0.00019986,2]
[357589952,1744207120914,-249543.90138327,0.0002,2]
[357589957,1744207258923,1500.0,0.00032,120]
[357589962,1744207330860,2978.4063686,7.945e-05,2]
[357589963,1744207330926,150.0,7.945e-05,2]
[357589964,1744207330958,332.5225984,7.945e-05,2]
[357589965,1744207336508,191.55,0.00024954,120]
[357589966,1744207336680,191.55,0.00027727,120]
[357589967,1744207336969,191.55,0.000305,120]
[357589968,1744207389028,1500.0,0.0003,30]
[357589981,1744207401195,500.0,0.00032,120]
[357589983,1744207438856,500.0,0.00032,120]
[357589985,1744207474113,1226.89693993,0.0003,30]
[357589994,1744207556142,-250.0,0.00019,2]
[357589995,1744207556163,-93.07363873,0.000199,2]
[357589999,1744207618346,500.0,0.00032,120]
[357590002,1744207639124,-2866.01786489,0.000199,2]
[357590003,1744207639147,-222.89542076,0.000199,2]
[357590004,1744207639171,-500.0,0.00019973,2]
[357590005,1744207639194,-7011.6645404,0.00019986,2]
[357590006,1744207639222,-1782.5907552,0.00019986,2]
[357590007,1744207639246,-307.79790168,0.00019986,2]
[357590016,1744207754134,-2300.887414,0.00019986,2]
[357590017,1744207759176,-2962.84128972,0.00019986,2]
[357590018,1744207759199,-2897.901008,0.00019986,2]
[357590019,1744207759225,-120547.5440517,0.00019986,2]
[357590020,1744207759248,-1451.5146991,0.00019986,2]
[357590021,1744207759275,-6292.3559969,0.00019986,2]
[357590022,1744207759299,-1599.7193767,0.00019986,2]
[357590023,1744207759321,-204.23529124,0.00019986,2]
[357590024,1744207759344,-282.47094081,0.00019986,2]
[357590025,1744207759370,-129207.36032367,0.0002,2]
[357590026,1744207760098,-32295.21839717,0.0002,2]
[357590027,1744207760120,-10343.56216848,0.0002,2]
[357590028,1744207760142,-3000.0,0.0002,4]
[357590029,1744207760163,-12829.59429435,0.0002,14]
[357590030,1744207770104,-27748.40570565,0.0002,14]
[357590031,1744207770126,-1384.22,0.00020046,2]
[357590032,1744207770146,-620.34232788,0.000209,2]
[357590033,1744207770166,-499.999999,0.00020973,2]
[357590034,1744207770186,-500.0,0.00020973,2]
[357590035,1744207770206,-2354.88071018,0.00021,2]
[357590036,1744207770229,-63128.51581729,0.00021,2]
[357590037,1744207773110,-47810.49266,0.00021,2]
[357590038,1744207774104,-4464.622848,0.00021,2]
[357590062,1744207831741,-798.32798818,0.00020986,2]
[357590070,1744207831913,-2800.37407409,0.00020986,2]
[357590073,1744207831933,-6322.72297207,0.00020986,2]
[357590127,1744207837874,-390.795,0.00020986,2]